bitfinex/quotes_BTCUSD_20250408
["timestamp","ask_amount","ask_price","bid_price","bid_amount"]
[1744108694640,0.36203598,79070.0,79069.0,0.18953509]
[1744108694845,0.36203598,79070.0,79069.0,0.45512509]
[1744108695066,0.36203598,79070.0,79069.0,0.18953509]
[1744108695490,0.37468298,79070.0,79069.0,0.18953509]
[1744108696133,0.36203598,79070.0,79069.0,0.18953509]
[1744108696558,0.36203598,79070.0,79069.0,0.44247809]
[1744108696771,0.36203598,79070.0,79069.0,0.18953509]
[1744108696950,0.36203598,79070.0,79069.0,0.45512509]
[1744108697102,0.36203598,79070.0,79069.0,0.44247809]
[1744108697793,0.36203598,79070.0,79069.0,0.45512509]
[1744108697908,0.36203598,79070.0,79069.0,0.18953509]
[1744108698114,0.37468298,79070.0,79069.0,0.18953509]
[1744108698362,0.62762298,79070.0,79069.0,0.17499424]
[1744108698588,0.36203598,79070.0,79069.0,0.17499424]
[1744108698792,0.37468298,79070.0,79069.0,0.17499424]
[1744108699651,0.36203598,79070.0,79069.0,0.17499424]
[1744108700245,0.36203598,79070.0,79069.0,0.32059424]
[1744108704412,0.37468298,79070.0,79069.0,0.32059424]
[1744108705538,0.36203598,79070.0,79069.0,0.33513509]
[1744108705754,0.36203598,79070.0,79069.0,0.34778209]
[1744108706458,0.02203598,79070.0,79069.0,0.34778209]
[1744108706894,0.005,79070.0,79069.0,0.34678209]
[1744108707117,0.3499063,79081.0,79080.0,0.012645]
[1744108707341,0.0099063,79081.0,79080.0,0.39444449]
[1744108707559,0.01097515,79081.0,79080.0,1.39652449]
[1744108707771,0.265464,79107.0,79100.0,0.252843]
[1744108707983,0.2753779,79105.0,79101.0,0.27181864]
[1744108708191,0.34,79102.0,79101.0,0.27181864]
[1744108708411,0.252834,79103.0,79101.0,0.27181864]
[1744108708661,0.36363237,79102.0,79101.0,0.27181864]
[1744108708890,0.35099137,79102.0,79101.0,0.27181864]
[1744108709112,0.36210358,79102.0,79101.0,0.27181864]
[1744108709749,0.36210358,79102.0,79101.0,0.28148203]
[1744108710188,0.01099137,79102.0,79101.0,0.49122288]
[1744108710390,0.35299137,79102.0,79101.0,0.49122288]
[1744108710596,0.354641,79102.0,79101.0,0.49122288]
[1744108710799,0.36563237,79102.0,79101.0,0.49122288]
[1744108711031,0.36763237,79102.0,79101.0,0.49122288]
[1744108711234,0.36563237,79102.0,79101.0,0.49122288]
[1744108711441,0.01299137,79102.0,79101.0,0.49122288]
[1744108711649,0.01099137,79102.0,79101.0,0.49122288]
[1744108712060,0.02563237,79102.0,79101.0,0.49122288]
[1744108712508,0.03681985,79102.0,79101.0,0.49122288]
[1744108712951,0.03781985,79102.0,79101.0,0.49122288]
[1744108713864,0.02517885,79102.0,79101.0,0.49122288]
[1744108714095,0.27801685,79102.0,79101.0,0.49122288]
[1744108714316,0.63065785,79102.0,79101.0,0.49122288]
[1744108714725,0.35399137,79102.0,79101.0,0.49122288]
[1744108715425,0.35399137,79102.0,79101.0,0.75670588]
[1744108716562,0.01099137,79102.0,79101.0,1.21690588]
[1744108717007,0.001,79102.0,79101.0,1.21690588]
[1744108717227,0.00012616,79105.0,79104.0,0.265472]
[1744108717464,0.00012616,79105.0,79104.0,0.45147149]
[1744108719858,0.00012616,79105.0,79104.0,0.45247149]
[1744108720092,0.0113947,79105.0,79104.0,0.45447149]
[1744108720298,0.00012616,79105.0,79104.0,0.45447149]
[1744108720500,0.0113947,79105.0,79104.0,0.45447149]
[1744108720725,0.00012616,79105.0,79104.0,0.45447149]
[1744108721412,0.00012616,79105.0,79104.0,1.45619149]
[1744108724530,0.00012616,79105.0,79104.0,1.87059149]
[1744108724957,0.00012616,79105.0,79104.0,1.92049149]
[1744108732033,0.25295416,79105.0,79104.0,1.65501949]
[1744108732231,0.25295416,79105.0,79104.0,1.92049149]
[1744108732232,0.00012616,79105.0,79104.0,1.92049149]
[1744108734222,0.00012616,79105.0,79104.0,1.91949149]
[1744108734462,0.00012616,79105.0,79104.0,1.92149149]
[1744108734873,0.00012616,79105.0,79104.0,1.91949149]
[1744108735279,0.00012616,79105.0,79104.0,1.92149149]
[1744108735481,0.00012616,79105.0,79104.0,1.92349149]
[1744108735869,0.00012616,79105.0,79104.0,1.91949149]
[1744108736003,0.00012616,79105.0,79104.0,1.92449149]
[1744108740005,0.00012616,79105.0,79104.0,1.91949149]
[1744108740209,0.00012616,79105.0,79104.0,1.91749149]
[1744108741034,0.00112616,79105.0,79104.0,1.92449149]
[1744108741450,0.00112616,79105.0,79104.0,1.92549149]
[1744108741649,0.00212616,79105.0,79104.0,1.93249149]
[1744108741848,0.00112616,79105.0,79104.0,1.92449149]
[1744108742193,0.00212616,79105.0,79104.0,1.97286147]
[1744108752871,1.6e-07,79105.0,79104.0,1.97286147]
[1744108753740,0.0001681,79111.0,79109.0,0.415455]
[1744108753741,2e-07,79111.0,79109.0,0.415455]
[1744108753954,2e-07,79111.0,79110.0,0.27829655]
[1744108754173,0.0001681,79127.0,79126.0,0.52553985]
[1744108754400,0.002,79139.0,79136.0,0.162636]
[1744108754611,0.00212623,79139.0,79138.0,0.12625864]
[1744108754833,0.00212623,79139.0,79138.0,0.15343549]
[1744108755933,0.00212623,79139.0,79138.0,0.20306243]
[1744108756160,0.00212623,79139.0,79138.0,0.20053549]
[1744108756377,0.00212623,79139.0,79138.0,0.2030623]
[1744108756592,0.00212623,79139.0,79138.0,0.20306218]
[1744108756807,0.00212623,79139.0,79138.0,0.20053549]
[1744108757234,0.00312623,79139.0,79138.0,0.20053549]
[1744108757457,0.00212623,79139.0,79138.0,0.20053549]
[1744108757667,0.00212623,79139.0,79138.0,0.20153549]
[1744108758565,0.00212623,79139.0,79138.0,0.20406224]
[1744108758791,0.00212623,79139.0,79138.0,0.20153549]
[1744108759206,0.00212623,79139.0,79138.0,0.20406219]
[1744108759444,0.00212623,79139.0,79138.0,0.61846219]
[1744108759647,0.00212623,79139.0,79138.0,0.62565094]
[1744108759851,0.00212623,79139.0,79138.0,0.67415094]
[1744108760923,0.00212623,79139.0,79138.0,0.67315094]
[1744108761134,0.00212623,79139.0,79138.0,0.57755094]
[1744108761350,0.00312623,79139.0,79138.0,0.58455094]
[1744108761609,0.00212623,79139.0,79138.0,0.58155094]
[1744108762006,0.00212623,79139.0,79138.0,0.58555094]
[1744108762200,0.00212623,79139.0,79138.0,0.57755094]
[1744108762480,0.00212623,79139.0,79138.0,0.58055094]
[1744108762929,0.00212623,79139.0,79138.0,0.72407094]
[1744108763576,0.00212623,79139.0,79138.0,0.72707094]
[1744108770006,0.00212623,79139.0,79138.0,0.58355094]
[1744108770220,0.00212623,79139.0,79138.0,0.87707094]
[1744108770680,0.00212623,79139.0,79138.0,0.72707094]
[1744108770898,0.00212623,79139.0,79138.0,0.87707094]
[1744108771151,0.26748023,79139.0,79138.0,0.43549409]
[1744108771389,0.27726748,79139.0,79138.0,0.43549409]
[1744108771613,0.01191348,79139.0,79138.0,0.43549409]
[1744108771838,0.02454848,79139.0,79138.0,0.45003494]
[1744108772435,0.07154848,79139.0,79138.0,0.43549409]
[1744108772655,0.41154848,79139.0,79138.0,0.43549409]
[1744108772862,0.41154848,79139.0,79138.0,0.45003494]
[1744108773485,0.41154848,79139.0,79138.0,0.44703494]
[1744108773677,0.41154848,79139.0,79138.0,0.44403494]
[1744108773946,0.41154848,79139.0,79138.0,0.29503494]
[1744108774141,0.41154848,79139.0,79138.0,0.26977864]
[1744108774557,0.41654848,79139.0,79138.0,0.26977864]
[1744108775246,0.605365,79136.0,79135.0,1.00132]
[1744108775459,0.605365,79136.0,79135.0,1.12757864]
[1744108775662,0.66256813,79136.0,79135.0,1.12757864]
[1744108775872,0.66256813,79136.0,79135.0,0.12625864]
[1744108776508,0.69562645,79136.0,79135.0,0.12625864]
[1744108777278,0.69118122,79136.0,79135.0,0.12625864]
[1744108783611,0.64368122,79136.0,79135.0,0.12625864]
[1744108784018,0.39095222,79136.0,79135.0,0.12625864]
[1744108784626,0.36733913,79136.0,79135.0,0.12625864]
[1744108788095,0.36733913,79136.0,79135.0,0.14079949]
[1744108788990,0.35470313,79136.0,79135.0,0.30343549]
[1744108789206,0.01470313,79136.0,79135.0,0.55616749]
[1744108789412,0.01470313,79136.0,79135.0,0.29079949]
[1744108790064,0.00970313,79136.0,79135.0,0.29079949]
[1744108790528,0.34,79137.0,79136.0,0.01454085]
[1744108790768,0.34,79137.0,79136.0,0.39352849]
[1744108790990,0.00960948,79137.0,79136.0,0.45186449]
[1744108791237,0.00212623,79139.0,79138.0,0.27989985]
[1744108791441,0.00212623,79139.0,79138.0,0.45465849]
[1744108793529,0.00512623,79139.0,79138.0,0.45465849]
[1744108793775,0.00183436,79139.0,79138.0,0.45465849]
[1744108793963,0.00383436,79139.0,79138.0,0.45465849]
[1744108796070,0.00383436,79139.0,79138.0,0.59801849]
[1744108796288,0.00183436,79139.0,79138.0,0.59801849]
[1744108796504,0.01157648,79139.0,79138.0,0.59801849]
[1744108796687,0.00183436,79139.0,79138.0,0.59801849]
[1744108796990,0.00183436,79139.0,79138.0,0.60201849]
[1744108809247,0.00183436,79139.0,79138.0,0.33665949]
[1744108809465,0.00183436,79139.0,79138.0,0.28815949]
[1744108809466,0.01446936,79139.0,79138.0,0.28815949]
[1744108809695,0.02426651,79139.0,79138.0,0.43815949]
[1744108809943,0.02426651,79139.0,79138.0,0.42361864]
[1744108810354,0.01163151,79139.0,79138.0,0.42161864]
[1744108810736,0.01163151,79139.0,79138.0,0.43615949]
[1744108810930,0.01163151,79139.0,79138.0,0.43415949]
[1744108811999,0.01163151,79139.0,79138.0,0.44679549]
[1744108812189,0.00183436,79139.0,79138.0,0.49399549]
[1744108812394,0.00183436,79139.0,79138.0,0.54189549]
[1744108813296,0.00183436,79139.0,79138.0,0.54389549]
[1744108813501,0.00183436,79139.0,79138.0,0.54589549]
[1744108813707,0.00183436,79139.0,79138.0,0.54189549]
[1744108814138,0.00183436,79139.0,79138.0,0.54689549]
[1744108814971,0.00183436,79139.0,79138.0,0.55189549]
[1744108819270,3.6e-07,79139.0,79138.0,0.59115631]
[1744108821608,1.6e-07,79141.0,79140.0,0.012635]
[1744108821834,1.6e-07,79141.0,79140.0,0.24853449]
[1744108822054,1.6e-07,79141.0,79140.0,0.28779531]
[1744108822271,1.6e-07,79141.0,79140.0,0.37727364]
[1744108822705,1.6e-07,79141.0,79140.0,0.39181449]
[1744108823355,0.00100016,79141.0,79140.0,0.40081449]
[1744108823577,1.6e-07,79141.0,79140.0,0.43108114]
[1744108823995,1.6e-07,79141.0,79140.0,0.43608114]
[1744108825225,1.6e-07,79141.0,79140.0,0.44108114]
[1744108825414,1.6e-07,79141.0,79140.0,0.43608114]
[1744108825881,1.6e-07,79141.0,79140.0,0.43108114]
[1744108826066,1.6e-07,79141.0,79140.0,0.43908114]
[1744108826205,1.6e-07,79141.0,79140.0,0.44708114]
[1744108826403,1.6e-07,79141.0,79140.0,0.55994521]
[1744108829929,1.6e-07,79141.0,79140.0,0.44708114]
[1744108833643,1.6e-07,79141.0,79140.0,0.58254029]
[1744108833842,1.6e-07,79141.0,79140.0,0.54327364]
[1744108834050,1.6e-07,79141.0,79140.0,0.55781449]
[1744108834253,1.6e-07,79141.0,79140.0,0.54327364]
[1744108834676,1.6e-07,79141.0,79140.0,0.55781449]
[1744108834885,1.6e-07,79141.0,79140.0,0.59708945]
[1744108835378,1.6e-07,79141.0,79140.0,0.45380945]
[1744108835561,1.6e-07,79141.0,79140.0,0.59708945]
[1744108837772,1.6e-07,79141.0,79140.0,0.55781449]
[1744108839632,1.6e-07,79141.0,79140.0,0.67090837]
[1744108839946,1.6e-07,79141.0,79140.0,1.67174837]
[1744108841468,1.6e-07,79141.0,79140.0,1.71103103]
[1744108841666,1.6e-07,79141.0,79140.0,2.02653103]
[1744108843009,1.6e-07,79141.0,79140.0,1.91343715]
[1744108850191,1.6e-07,79141.0,79140.0,1.59793715]
[1744108855496,1.6e-07,79141.0,79140.0,1.91343715]
[1744108857282,1.6e-07,79141.0,79140.0,1.59793715]
[1744108858730,1.6e-07,79141.0,79140.0,1.45465715]
[1744108859008,1.6e-07,79141.0,79140.0,1.5354963]
[1744108859202,1.6e-07,79141.0,79140.0,1.4882963]
[1744108859612,1.6e-07,79141.0,79140.0,1.50283715]
[1744108862366,1.6e-07,79141.0,79140.0,1.81833715]
[1744108862588,1.6e-07,79141.0,79140.0,1.86343715]
[1744108863263,1.6e-07,79141.0,79140.0,1.54793715]
[1744108868330,1.6e-07,79141.0,79140.0,1.86343715]
[1744108869663,1.6e-07,79141.0,79140.0,1.91183715]
[1744108870363,1.6e-07,79141.0,79140.0,1.90383715]
[1744108870583,1.6e-07,79141.0,79140.0,1.90483715]
[1744108870974,1.6e-07,79141.0,79140.0,1.91383715]
[1744108876974,1.6e-07,79141.0,79140.0,1.90483715]
[1744108877656,1.6e-07,79141.0,79140.0,1.91383715]
[1744108877866,0.0001679,79148.0,79147.0,0.313628]
[1744108878183,0.0001679,79148.0,79147.0,0.49371015]
[1744108878400,0.0001679,79148.0,79147.0,0.64371015]
[1744108879381,0.0001679,79148.0,79147.0,0.65171015]
[1744108880853,0.0001679,79148.0,79147.0,0.65971015]
[1744108882447,0.0001679,79148.0,79147.0,0.69801015]
[1744108882919,0.0001679,79148.0,79147.0,0.70701015]
[1744108883621,0.0001679,79148.0,79147.0,0.69901015]
[1744108883838,0.0001679,79148.0,79147.0,0.70801015]
[1744108884963,0.002,79169.0,79168.0,0.42979885]
[1744108885186,0.00242059,79169.0,79168.0,1.70013749]
[1744108886827,0.00242059,79169.0,79168.0,1.70213749]
[1744108887482,0.00242059,79169.0,79168.0,1.70413749]
[1744108888508,0.00242059,79169.0,79168.0,1.71348096]
[1744108893267,0.00242059,79169.0,79168.0,1.71344096]
[1744108896263,0.00242059,79169.0,79168.0,1.54302911]
[1744108896490,0.00242059,79169.0,79168.0,1.69890011]
[1744108896720,0.00242059,79169.0,79168.0,1.71344096]
[1744108897142,0.00242059,79169.0,79168.0,1.43364211]
[1744108897372,0.26283469,79172.0,79169.0,0.01454085]
[1744108897608,0.265251,79170.0,79169.0,0.01454085]
[1744108897837,0.311651,79170.0,79169.0,0.14079949]
[1744108898063,0.33385977,79170.0,79169.0,0.14079949]
[1744108898261,0.33385977,79170.0,79169.0,0.12625864]
[1744108898613,0.33385977,79170.0,79169.0,0.14079949]
[1744108900937,0.67385977,79170.0,79169.0,0.14079949]
[1744108901159,0.68331462,79170.0,79169.0,0.12625864]
[1744108901382,0.69513257,79170.0,79169.0,0.12625864]
[1744108903458,0.67385977,79170.0,79169.0,0.12625864]
[1744108904587,0.68331255,79170.0,79169.0,0.12625864]
[1744108911191,0.63691255,79170.0,79169.0,0.12625864]
[1744108923609,0.37166155,79170.0,79169.0,0.12625864]
[1744108923819,0.37166155,79170.0,79169.0,0.14079949]
[1744108924028,0.38429255,79170.0,79169.0,0.14079949]
[1744108926830,0.37166155,79170.0,79169.0,0.14079949]
[1744108927035,0.37166155,79170.0,79169.0,0.15343049]
[1744108927313,0.03166155,79170.0,79169.0,0.20303049]
[1744108927674,0.00012613,79172.0,79171.0,0.16263]
[1744108927842,0.00012613,79172.0,79171.0,0.30342949]
[1744108928041,0.00959458,79172.0,79171.0,0.30342949]
[1744108928579,0.02218405,79172.0,79171.0,0.30342949]
[1744108928958,0.02218405,79172.0,79171.0,0.30542949]
[1744108929157,0.02218405,79172.0,79171.0,0.30742949]
[1744108931320,0.00012613,79172.0,79171.0,0.30742949]
[1744108931524,0.02218405,79172.0,79171.0,0.31685474]
[1744108932340,0.02218405,79172.0,79171.0,0.30742949]
[1744108935211,0.02218405,79172.0,79171.0,0.35352949]
[1744108935648,0.00012613,79172.0,79171.0,0.35352949]
[1744108936589,0.00012613,79172.0,79171.0,0.36294846]
[1744108937217,0.00012613,79172.0,79171.0,0.40854846]
[1744108938202,0.00012613,79172.0,79171.0,0.40654846]
[1744108938404,0.00012613,79172.0,79171.0,0.40754846]
[1744108938608,0.00012613,79172.0,79171.0,0.41054846]
[1744108938802,0.00012613,79172.0,79171.0,0.40754846]
[1744108940282,0.00012613,79172.0,79171.0,0.41054846]
[1744108940431,0.00012613,79172.0,79171.0,0.40754846]
[1744108940609,0.00012613,79172.0,79171.0,0.40454846]
[1744108940814,0.00012613,79172.0,79171.0,0.40854846]
[1744108941025,0.00012613,79172.0,79171.0,0.41254846]
[1744108941224,0.00012613,79172.0,79171.0,0.39800761]
[1744108941516,0.00012613,79172.0,79171.0,0.52857761]
[1744108941719,0.00012613,79172.0,79171.0,0.54120761]
[1744108941911,0.00012613,79172.0,79171.0,0.55574846]
[1744108943071,0.00012613,79172.0,79171.0,0.41254846]
[1744108943273,0.00012613,79172.0,79171.0,0.55574846]
[1744108947786,0.00012613,79172.0,79171.0,0.55174846]
[1744108947998,0.00012613,79172.0,79171.0,0.55374846]
[1744108948580,0.00012613,79172.0,79171.0,0.55974846]
[1744108948730,1.3e-07,79172.0,79171.0,0.55974846]
[1744108953468,1.3e-07,79172.0,79171.0,0.97414846]
[1744108954557,1.3e-07,79172.0,79171.0,0.95960761]
[1744108954727,1.3e-07,79172.0,79171.0,0.86790761]
[1744108955474,1.3e-07,79172.0,79171.0,0.86702949]
[1744108955674,1.3e-07,79172.0,79171.0,0.86602949]
[1744108955875,1.3e-07,79172.0,79171.0,0.85448864]
[1744108956230,1.3e-07,79172.0,79171.0,0.86902949]
[1744108956373,1.3e-07,79172.0,79171.0,0.86390718]
[1744108956820,1.3e-07,79172.0,79171.0,0.87344803]
[1744108957020,1.3e-07,79172.0,79171.0,0.87544803]
[1744108957837,1.3e-07,79172.0,79171.0,0.87244803]
[1744108958056,1.3e-07,79172.0,79171.0,0.87444803]
[1744108964506,1.3e-07,79172.0,79171.0,0.86502949]
[1744108967970,1.3e-07,79172.0,79171.0,0.72182949]
[1744108968181,1.3e-07,79172.0,79171.0,0.86498949]
[1744108969153,1.3e-07,79172.0,79171.0,0.70719949]
[1744108969351,0.03487684,79172.0,79171.0,0.70035949]
[1744108969567,0.02224684,79172.0,79171.0,1.11660649]
[1744108969886,1.3e-07,79172.0,79171.0,1.12602731]
[1744108970457,1.3e-07,79172.0,79171.0,1.12402731]
[1744108970680,1.3e-07,79172.0,79171.0,1.12502731]
[1744108970983,1.3e-07,79172.0,79171.0,1.12402731]
[1744108971210,1.3e-07,79172.0,79171.0,1.21942731]
[1744108971386,1.3e-07,79172.0,79171.0,1.22242731]
[1744108971788,1.3e-07,79172.0,79171.0,1.22142731]
[1744108972192,1.3e-07,79172.0,79171.0,1.21842731]
[1744108973463,1.3e-07,79172.0,79171.0,1.22442731]
[1744108973670,1.3e-07,79172.0,79171.0,1.22842731]
[1744108973969,1.3e-07,79172.0,79171.0,1.22442731]
[1744108974346,1.3e-07,79172.0,79171.0,1.23042731]
[1744108977102,1.3e-07,79172.0,79171.0,1.34350827]
[1744108979525,1.3e-07,79172.0,79171.0,1.09040742]
[1744108979701,1.3e-07,79172.0,79171.0,1.23356742]
[1744108980042,1.3e-07,79172.0,79171.0,1.24810827]
[1744108980697,1.3e-07,79172.0,79171.0,1.23610827]
[1744108981018,1.3e-07,79172.0,79171.0,1.24410827]
[1744108981453,1.3e-07,79172.0,79171.0,0.25676042]
[1744108981454,0.35263013,79172.0,79171.0,0.25676042]
[1744108981653,0.35263013,79172.0,79171.0,0.2443396]
[1744108981929,0.37493168,79172.0,79171.0,0.2443396]
[1744108982231,0.37493168,79172.0,79171.0,0.2503396]
[1744108982433,0.37493168,79172.0,79171.0,0.2443396]
[1744108982874,0.37493168,79172.0,79171.0,0.13125864]
[1744108983069,0.37493168,79172.0,79171.0,0.12625864]
[1744108983214,0.38725347,79172.0,79171.0,0.12625864]
[1744108988569,0.012632,79163.0,79162.0,0.15]
[1744108988783,0.605275,79163.0,79162.0,0.27625864]
[1744108988993,0.67433517,79163.0,79162.0,0.27625864]
[1744108990455,0.67433517,79163.0,79162.0,0.27725864]
[1744108990677,0.67433517,79163.0,79162.0,0.12725864]
[1744108994478,0.67433517,79163.0,79162.0,0.001]
[1744108995296,0.72063517,79163.0,79162.0,0.001]
[1744108999387,0.67373517,79163.0,79162.0,0.001]
[1744108999815,0.605311,79152.0,79151.0,0.01454085]
[1744109000012,0.605311,79152.0,79151.0,0.14079949]
[1744109000174,0.62719244,79152.0,79151.0,0.14079949]
[1744109000935,0.62719244,79152.0,79151.0,0.15026717]
[1744109001331,0.63119244,79152.0,79151.0,0.15026717]
[1744109001534,0.63419244,79152.0,79151.0,0.15026717]
[1744109001946,0.38151444,79152.0,79151.0,0.15026717]
[1744109002398,0.36888144,79152.0,79151.0,0.15026717]
[1744109002922,0.36488144,79152.0,79151.0,0.15026717]
[1744109003118,0.36188144,79152.0,79151.0,0.15026717]
[1744109003324,0.36588144,79152.0,79151.0,0.15026717]
[1744109003477,0.36388144,79152.0,79151.0,0.15026717]
[1744109003679,0.36188144,79152.0,79151.0,0.15026717]
[1744109004083,0.36188144,79152.0,79151.0,0.16290117]
[1744109004521,0.36188144,79152.0,79151.0,0.15026717]
[1744109004672,0.02188144,79152.0,79151.0,0.20960117]
[1744109005072,0.252633,79166.0,79151.0,0.20960117]
[1744109005073,0.252633,79166.0,79162.0,0.01454085]
[1744109005275,1.3e-07,79172.0,79171.0,0.42978785]
[1744109005518,1.3e-07,79172.0,79171.0,0.30028729]
[1744109006128,0.25261413,79172.0,79171.0,0.30028729]
[1744109006328,0.26524413,79172.0,79171.0,0.30028729]
[1744109006875,1.3e-07,79172.0,79171.0,0.30128729]
[1744109006989,1.3e-07,79172.0,79171.0,0.30228729]
[1744109007190,1.3e-07,79172.0,79171.0,0.31391729]
[1744109007396,1.3e-07,79172.0,79171.0,0.56753429]
[1744109007593,1.3e-07,79172.0,79171.0,0.56653429]
[1744109008449,1.3e-07,79172.0,79171.0,0.63962695]
[1744109011447,1.3e-07,79172.0,79171.0,1.05402695]
[1744109013644,0.01263013,79172.0,79171.0,0.8678391]
[1744109013811,0.01263013,79172.0,79171.0,0.88237995]
[1744109014023,0.03476628,79172.0,79171.0,0.88237995]
[1744109014198,0.03476628,79172.0,79171.0,0.73917995]
[1744109014398,0.01263013,79172.0,79171.0,0.7246391]
[1744109014601,0.25261413,79172.0,79171.0,0.71568729]
[1744109014799,0.27475028,79172.0,79171.0,0.71568729]
[1744109014986,0.28738028,79172.0,79171.0,0.71568729]
[1744109015638,0.28738028,79172.0,79171.0,0.13674644]
[1744109015812,0.62738028,79172.0,79171.0,0.13674644]
[1744109016184,0.62738028,79172.0,79171.0,0.12625864]
[1744109016628,0.62938028,79172.0,79171.0,0.12625864]
[1744109016840,0.62838028,79172.0,79171.0,0.12625864]
[1744109017181,0.63038028,79172.0,79171.0,0.12625864]
[1744109017589,0.63338028,79172.0,79171.0,0.12625864]
[1744109017720,0.265305,79154.0,79153.0,0.14316]
[1744109017920,0.605305,79154.0,79153.0,0.12625864]
[1744109018130,0.62735742,79154.0,79153.0,0.12625864]
[1744109019097,0.63035742,79154.0,79153.0,0.12625864]
[1744109019489,0.63435742,79154.0,79153.0,0.12625864]
[1744109019816,0.63135742,79154.0,79153.0,0.12625864]
[1744109020116,0.63535742,79154.0,79153.0,0.12625864]
[1744109021839,0.63535742,79154.0,79139.0,0.000336]
[1744109021840,0.012635,79140.0,79139.0,0.000336]
[1744109022034,0.605351,79140.0,79139.0,0.12659464]
[1744109022159,0.62722739,79140.0,79139.0,0.000336]
[1744109022598,0.63926569,79140.0,79139.0,0.000336]
[1744109022807,0.76552114,79140.0,79139.0,1e-06]
[1744109022956,0.81302114,79140.0,79139.0,0.00042159]
[1744109023173,0.82102114,79140.0,79139.0,0.00142159]
[1744109023378,0.68676569,79140.0,79139.0,0.00042159]
[1744109023783,0.68876569,79140.0,79139.0,0.01242159]
[1744109025113,0.68676569,79140.0,79139.0,0.00042159]
[1744109025347,0.68776569,79140.0,79139.0,0.00242159]
[1744109025596,0.68776569,79140.0,79139.0,0.00742159]
[1744109025877,0.68776569,79140.0,79139.0,0.00242159]
[1744109026084,0.64026569,79140.0,79139.0,0.00242159]
[1744109026300,0.64126569,79140.0,79139.0,0.01042159]
[1744109030557,0.64126569,79140.0,79139.0,0.13668023]
[1744109031695,0.37591469,79140.0,79139.0,0.13668023]
[1744109031900,0.64126569,79140.0,79139.0,0.13668023]
[1744109038326,0.37591469,79140.0,79139.0,0.13668023]
[1744109038557,0.62863069,79140.0,79139.0,0.13668023]
[1744109038762,0.64126569,79140.0,79139.0,0.13668023]
[1744109039291,0.64026569,79140.0,79139.0,0.12868023]
[1744109039692,0.64626569,79140.0,79139.0,0.12768023]
[1744109040129,0.65326569,79140.0,79139.0,0.12868023]
[1744109042562,0.04791469,79140.0,79139.0,0.40857508]
[1744109042744,0.04851139,79140.0,79139.0,0.14322108]
[1744109042947,0.026635,79140.0,79139.0,0.14322108]
[1744109043150,0.38827756,79140.0,79139.0,0.14322108]
[1744109043387,0.40059804,79140.0,79139.0,0.14322108]
[1744109043592,0.40059804,79140.0,79139.0,0.12868023]
[1744109048137,0.40059804,79140.0,79139.0,0.00242159]
[1744109061526,0.40059804,79140.0,79137.0,5.9e-07]
[1744109061527,0.405136,79138.0,79137.0,5.9e-07]
[1744109061742,0.816936,79138.0,79137.0,5.9e-07]
[1744109062150,0.83844926,79138.0,79137.0,5.9e-07]
[1744109062384,0.605382,79131.0,79130.0,5.9e-07]
[1744109062578,0.605412,79122.0,79119.0,0.000336]
[1744109062778,0.605412,79122.0,79121.0,0.00246223]
[1744109062978,0.62683965,79122.0,79121.0,0.00246223]
[1744109063896,0.62783965,79122.0,79121.0,0.00846223]
[1744109064117,0.62783965,79122.0,79121.0,0.01346223]
[1744109065474,0.605419,79120.0,79119.0,2.3e-07]
[1744109065697,0.62679811,79120.0,79119.0,2.3e-07]
[1744109066845,0.62779811,79120.0,79119.0,0.00700023]
[1744109067073,0.62879811,79120.0,79119.0,0.01300023]
[1744109068036,0.62148849,79120.0,79119.0,0.01300023]
[1744109069114,0.605455,79109.0,79107.0,0.000336]
[1744109069526,0.61954137,79109.0,79107.0,0.000336]
[1744109070244,0.62554137,79109.0,79108.0,0.001336]
[1744109070639,0.63054137,79109.0,79108.0,0.001336]
[1744109071164,0.63054137,79109.0,79107.0,0.000336]
[1744109071165,0.35264,79108.0,79107.0,1e-08]
[1744109071409,0.47889545,79108.0,79107.0,1e-08]
[1744109071628,0.36671534,79108.0,79107.0,1e-08]
[1744109072218,0.03271534,79108.0,79107.0,1e-08]
[1744109072607,0.02671534,79108.0,79107.0,1e-08]
[1744109072804,0.04471534,79108.0,79107.0,1e-08]
[1744109072971,0.17097079,79108.0,79107.0,1e-08]
[1744109074010,0.352641,79104.0,79103.0,1e-08]
[1744109074209,0.36649905,79104.0,79103.0,1e-08]
[1744109075334,0.605513,79092.0,79091.0,0.0023362]
[1744109075557,0.605513,79092.0,79091.0,0.00246236]
[1744109075773,0.61936318,79092.0,79091.0,0.00246236]
[1744109076462,0.62336318,79092.0,79091.0,0.00246236]
[1744109076691,0.62836318,79092.0,79091.0,0.00246236]
[1744109078832,0.64096037,79092.0,79091.0,0.00246236]
[1744109079042,0.76721582,79092.0,79091.0,0.00246236]
[1744109079236,0.64096037,79092.0,79091.0,0.00246236]
[1744109083741,0.64096037,79092.0,79091.0,0.178621]
[1744109088883,0.64096037,79092.0,79091.0,0.19316185]
[1744109100018,0.64096037,79092.0,79091.0,0.178621]
[1744109100540,0.64096037,79092.0,79091.0,0.128721]
[1744109100754,0.73846057,79092.0,79091.0,0.00246236]
[1744109101571,0.252895,79085.0,79082.0,7.6e-07]
[1744109101772,0.605542,79083.0,79082.0,7.6e-07]
[1744109102102,0.61928174,79083.0,79082.0,7.6e-07]
[1744109102630,0.69628552,79083.0,79082.0,7.6e-07]
[1744109103016,0.62128174,79083.0,79082.0,7.6e-07]
[1744109104575,0.62328174,79083.0,79082.0,7.6e-07]
[1744109108287,0.67408174,79083.0,79082.0,7.6e-07]
[1744109109369,0.67208174,79083.0,79082.0,7.6e-07]
[1744109109793,0.67708174,79083.0,79082.0,7.6e-07]
[1744109110009,0.67508174,79083.0,79082.0,7.6e-07]
[1744109110209,0.68008174,79083.0,79082.0,7.6e-07]
[1744109110417,0.80633719,79083.0,79082.0,7.6e-07]
[1744109111506,0.605614,79062.0,79059.0,0.000336]
[1744109111750,0.61921645,79062.0,79059.0,0.000336]
[1744109112724,0.61921645,79062.0,79061.0,0.00242101]
[1744109112930,0.62021645,79062.0,79061.0,0.00242101]
[1744109113091,0.64283767,79062.0,79061.0,0.00242101]
[1744109113640,0.64483767,79062.0,79061.0,0.00242101]
[1744109114144,0.62221645,79062.0,79061.0,0.00242101]
[1744109114553,0.62121645,79062.0,79061.0,0.00242101]
[1744109114757,0.62321645,79062.0,79061.0,0.00242101]
[1744109115499,0.7386595,79062.0,79061.0,0.00242101]
[1744109115713,0.62321645,79062.0,79061.0,0.00242101]
[1744109118802,0.63501412,79062.0,79061.0,0.00242101]
[1744109119321,0.65860947,79062.0,79061.0,0.00242101]
[1744109121253,0.63501412,79062.0,79061.0,0.00242101]
[1744109122555,0.63501412,79062.0,79061.0,0.05122101]
[1744109128765,0.63501412,79062.0,79061.0,0.00242101]
[1744109128989,0.75163693,79062.0,79061.0,0.00242101]
[1744109129326,0.65866409,79062.0,79061.0,0.00242101]
[1744109130272,0.65866409,79062.0,79039.0,0.050036]
[1744109130273,0.012651,79040.0,79039.0,0.050036]
[1744109130503,0.605715,79032.0,79031.0,0.002]
[1744109130725,0.61923201,79032.0,79031.0,0.0020421]
[1744109131060,0.64288198,79032.0,79031.0,0.0020421]
[1744109131215,0.65467965,79032.0,79031.0,0.0020421]
[1744109132709,0.605721,79030.0,79029.0,0.00029621]
[1744109132908,0.605721,79030.0,79029.0,0.00042255]